fUSD/lending_fUSD_20250907
["ID","MTS","AMOUNT","RATE_DAILY","PERIOD"]
[383957141,1757209841625,-1072.09,0.00030129,2]
[383957142,1757209841634,-400.0,0.00030129,2]
[383957143,1757209841644,-1116.74,0.00030129,2]
[383957144,1757209841654,-151.0,0.00030172,2]
[383957145,1757209841664,-151.0,0.00030172,2]
[383957146,1757209841675,-695.39793187,0.00030172,2]
[383957147,1757209841684,-267.46074303,0.00030172,2]
[383957148,1757209841694,-3000.0,0.00030172,2]
[383957149,1757209841703,-160.0,0.00030172,2]
[383957150,1757209841713,-151.0,0.00030172,2]
[383957151,1757209841723,-500.0,0.00030172,2]
[383957152,1757209841734,-500.0,0.00030172,2]
[383957153,1757209841743,-500.0,0.00030172,2]
[383957154,1757209841753,-500.0,0.00030172,2]
[383957155,1757209841763,-500.0,0.00030172,2]
[383957156,1757209841774,-500.0,0.00030172,2]
[383957157,1757209841783,-500.0,0.00030172,2]
[383957158,1757209841793,-500.0,0.00030172,2]
[383957159,1757209841803,-201.93286099,0.00030172,2]
[383957160,1757209841813,-151.0,0.00030172,2]
[383957161,1757209841823,-500.0,0.00030172,2]
[383957162,1757209841833,-151.0,0.00030172,2]
[383957163,1757209841843,-449.53605593,0.00030172,2]
[383957164,1757209841853,-151.0,0.00030172,2]
[383957165,1757209841864,-151.0,0.00030172,2]
[383957166,1757209841875,-151.0,0.00030172,2]
[383957167,1757209841885,-151.0,0.00030172,2]
[383957168,1757209841895,-151.0,0.00030172,2]
[383957169,1757209841906,-250.0,0.00030172,2]
[383957170,1757209841915,-151.0,0.00030172,2]
[383957171,1757209841926,-250.0,0.00030172,2]
[383957172,1757209841935,-151.0,0.00030172,2]
[383957173,1757209841945,-250.0,0.00030172,2]
[383957174,1757209841955,-151.0,0.00030172,2]
[383957175,1757209841965,-322.6107,0.00030172,2]
[383957176,1757209841975,-164.23098116,0.00030172,2]
[383957177,1757209841987,-250.0,0.00030172,2]
[383957178,1757209841996,-151.0,0.00030172,2]
[383957179,1757209842007,-277.52220185,0.00030172,2]
[383957180,1757209842016,-151.0,0.00030172,2]
[383957181,1757209842026,-151.0,0.00030172,2]
[383957182,1757209842036,-151.0,0.00030172,2]
[383957183,1757209842045,-151.0,0.00030172,2]
[383957184,1757209842055,-250.0,0.00030172,2]
[383957185,1757209842065,-250.0,0.00030172,2]
[383957186,1757209842074,-250.0,0.00030172,2]
[383957187,1757209842084,-250.0,0.00030172,2]
[383957188,1757209842094,-250.0,0.00030172,2]
[383957189,1757209842104,-250.0,0.00030172,2]
[383957190,1757209842115,-250.0,0.00030172,2]
[383957191,1757209842125,-250.0,0.00030172,2]
[383957192,1757209842134,-250.0,0.00030172,2]
[383957193,1757209842143,-250.0,0.00030172,2]
[383957194,1757209842153,-264.7503662,0.00030172,2]
[383957195,1757209842164,-633.27,0.00030302,2]
[383957196,1757209842173,-675.78,0.00030302,2]
[383957197,1757209842182,-400.0,0.00030302,2]
[383957198,1757209842192,-711.11,0.00030302,2]
[383957199,1757209842201,-400.0,0.00030302,2]
[383957200,1757209842211,-439.2,0.00030302,2]
[383957201,1757209842220,-400.0,0.00030395,2]
[383957202,1757209842235,-400.0,0.00030395,2]
[383957203,1757209842246,-695.61,0.00030395,2]
[383957204,1757209842255,-629.85,0.00030395,2]
[383957205,1757209842267,-1313.6,0.00030403,2]
[383957206,1757209842277,-400.0,0.00030403,2]
[383957207,1757209842286,-402.49687562,0.00030403,2]
[383957208,1757209842296,-820.24,0.00030403,2]
[383957209,1757209842307,-400.0,0.00030403,2]
[383957210,1757209842316,-400.0,0.00030403,2]
[383957211,1757209842326,-400.0,0.00030403,2]
[383957212,1757209842336,-400.0,0.00030403,2]
[383957213,1757209842346,-400.0,0.00030403,2]
[383957214,1757209842356,-400.0,0.00030403,2]
[383957215,1757209842366,-400.0,0.00030403,2]
[383957216,1757209842376,-400.0,0.00030403,2]
[383957217,1757209842385,-400.0,0.00030403,2]
[383957218,1757209842395,-400.0,0.00030403,2]
[383957219,1757209842406,-400.0,0.00030403,2]
[383957220,1757209842415,-688.61,0.00030403,2]
[383957221,1757209842427,-1541.11,0.00030403,2]
[383957222,1757209842436,-400.0,0.00030403,2]
[383957223,1757209842446,-400.0,0.00030403,2]
[383957224,1757209842455,-497.45,0.00030403,2]
[383957225,1757209842465,-553.65,0.00030403,2]
[383957226,1757209842474,-400.0,0.00030403,2]
[383957227,1757209842484,-400.0,0.00030403,2]
[383957228,1757209842494,-400.0,0.00030403,2]
[383957229,1757209842504,-1087.81,0.00030403,2]
[383957230,1757209842516,-400.0,0.00030403,2]
[383957231,1757209842526,-474.71,0.00030403,2]
[383957232,1757209842538,-400.0,0.00030403,2]
[383957233,1757209842549,-416.65269171,0.00030403,2]
[383957234,1757209842560,-403.25550136,0.00030403,2]
[383957235,1757209842570,-350.97757464,0.00030403,2]
[383957236,1757209842580,-1168.23,0.00030403,2]
[383957237,1757209842590,-739.05,0.00030403,2]
[383957238,1757209842599,-400.0,0.00030403,2]
[383957239,1757209842610,-417.56,0.00030403,2]
[383957240,1757209842619,-453.45,0.00030403,2]
[383957241,1757209842628,-1166.95,0.00030403,2]
[383957242,1757209842638,-400.0,0.00030403,2]
[383957243,1757209842649,-1219.37,0.00030403,2]
[383957244,1757209842659,-519.97,0.00030403,2]
[383957245,1757209842670,-400.0,0.00030403,2]
[383957246,1757209842679,-1175.07,0.00030403,2]
[383957247,1757209842689,-400.0,0.00030403,2]
[383957248,1757209842698,-400.0,0.00030403,2]
[383957249,1757209842708,-400.0,0.00030403,2]
[383957250,1757209842718,-400.0,0.00030403,2]
[383957251,1757209842727,-400.0,0.00030403,2]
[383957252,1757209842737,-400.0,0.00030403,2]
[383957253,1757209842748,-400.0,0.00030403,2]
[383957254,1757209842759,-400.0,0.00030403,2]
[383957255,1757209842769,-400.0,0.00030403,2]
[383957256,1757209842778,-401.97,0.00030403,2]
[383957257,1757209842787,-472.87,0.00030403,2]
[383957258,1757209842796,-1070.74,0.00030403,2]
[383957259,1757209842806,-400.0,0.00030403,2]
[383957260,1757209842817,-400.0,0.00030403,2]
[383957261,1757209842826,-400.0,0.00030403,2]
[383957262,1757209842835,-400.0,0.00030403,2]
[383957263,1757209842845,-400.0,0.00030403,2]
[383957264,1757209842855,-400.0,0.00030403,2]
[383957265,1757209842865,-880.85,0.00030403,2]
[383957266,1757209842876,-400.0,0.00030403,2]
[383957267,1757209842886,-400.0,0.00030403,2]
[383957268,1757209842896,-435.77,0.00030403,2]
[383957269,1757209842907,-984.92,0.00030403,2]
[383957270,1757209842917,-948.03,0.00030403,2]
[383957271,1757209842927,-530.92,0.00030403,2]
[383957272,1757209842937,-400.0,0.00030403,2]
[383957273,1757209842947,-426.04,0.00030403,2]
[383957274,1757209842957,-942.88,0.00030403,2]
[383957275,1757209842967,-400.0,0.00030403,2]
[383957276,1757209842978,-400.0,0.00030403,2]
[383957277,1757209842988,-400.0,0.00030403,2]
[383957278,1757209842997,-400.0,0.00030403,2]
[383957279,1757209843007,-400.0,0.00030403,2]
[383957280,1757209843017,-400.0,0.00030403,2]
[383957281,1757209843027,-455.79,0.00030403,2]
[383957282,1757209843037,-400.0,0.00030403,2]
[383957283,1757209843047,-400.0,0.00030403,2]
[383957284,1757209843056,-457.59,0.00030403,2]
[383957285,1757209843068,-400.0,0.00030403,2]
[383957286,1757209843080,-400.0,0.00030403,2]
[383957287,1757209843092,-1072.09,0.00030403,2]
[383957288,1757209843105,-505.59759193,0.00030403,2]
[383957289,1757209843115,-1116.74,0.00030403,2]
[383957290,1757209843126,-1425.0,0.00030534,2]
[383957291,1757209843136,-1425.0,0.00030551,2]
[383957292,1757209843149,-633.27,0.00030576,2]
[383957293,1757209843159,-675.78,0.00030576,2]
[383957294,1757209843169,-400.0,0.00030576,2]
[383957295,1757209843180,-711.11,0.00030576,2]
[383957296,1757209843190,-400.0,0.00030576,2]
[383957297,1757209843201,-439.2,0.00030576,2]
[383957298,1757209843212,-165.42,0.00030576,2]
[383957299,1757209843225,-417.08,0.00030643,2]
[383957300,1757209843238,-4341.75,0.00030667,2]
[383957301,1757209843248,-400.0,0.00030669,2]
[383957302,1757209843258,-400.0,0.00030669,2]
[383957303,1757209843269,-695.61,0.00030669,2]
[383957304,1757209843279,-629.85,0.00030669,2]
[383957305,1757209843290,-151.0,0.00030674,7]
[383957306,1757209843301,-789.67,0.00030676,2]
[383957307,1757209843311,-1313.6,0.00030677,2]
[383957308,1757209843321,-400.0,0.00030677,2]
[383957309,1757209843331,-820.24,0.00030677,2]
[383957310,1757209843341,-400.0,0.00030677,2]
[383957311,1757209843351,-400.0,0.00030677,2]
[383957312,1757209843360,-400.0,0.00030677,2]
[383957313,1757209843370,-400.0,0.00030677,2]
[383957314,1757209843379,-400.0,0.00030677,2]
[383957315,1757209843389,-400.0,0.00030677,2]
[383957316,1757209843398,-400.0,0.00030677,2]
[383957317,1757209843408,-400.0,0.00030677,2]
[383957318,1757209843417,-400.0,0.00030677,2]
[383957319,1757209843429,-400.0,0.00030677,2]
[383957320,1757209843438,-400.0,0.00030677,2]
[383957321,1757209843449,-688.61,0.00030677,2]
[383957322,1757209843459,-1541.11,0.00030677,2]
[383957323,1757209843469,-400.0,0.00030677,2]
[383957324,1757209843479,-400.0,0.00030677,2]
[383957325,1757209843489,-497.45,0.00030677,2]
[383957326,1757209843499,-553.65,0.00030677,2]
[383957327,1757209843509,-400.0,0.00030677,2]
[383957328,1757209843518,-400.0,0.00030677,2]
[383957329,1757209843529,-400.0,0.00030677,2]
[383957330,1757209843539,-1087.81,0.00030677,2]
[383957331,1757209843548,-400.0,0.00030677,2]
[383957332,1757209843559,-474.71,0.00030677,2]
[383957333,1757209843568,-400.0,0.00030677,2]
[383957334,1757209843578,-1168.23,0.00030677,2]
[383957335,1757209843588,-739.05,0.00030677,2]
[383957336,1757209843598,-400.0,0.00030677,2]
[383957337,1757209843608,-417.56,0.00030677,2]
[383957338,1757209843617,-453.45,0.00030677,2]
[383957339,1757209843627,-1166.95,0.00030677,2]
[383957340,1757209843636,-400.0,0.00030677,2]
[383957341,1757209843646,-1219.37,0.00030677,2]
[383957342,1757209843656,-519.97,0.00030677,2]
[383957343,1757209843666,-400.0,0.00030677,2]
[383957344,1757209843676,-1175.07,0.00030677,2]
[383957345,1757209843686,-400.0,0.00030677,2]
[383957346,1757209843696,-400.0,0.00030677,2]
[383957347,1757209843706,-400.0,0.00030677,2]
[383957348,1757209843715,-400.0,0.00030677,2]
[383957349,1757209843725,-400.0,0.00030677,2]
[383957350,1757209843735,-400.0,0.00030677,2]
[383957351,1757209843745,-400.0,0.00030677,2]
[383957352,1757209843754,-400.0,0.00030677,2]
[383957353,1757209843765,-400.0,0.00030677,2]
[383957354,1757209843774,-401.97,0.00030677,2]
[383957355,1757209843784,-472.87,0.00030677,2]
[383957356,1757209843795,-1070.74,0.00030677,2]
[383957357,1757209843805,-400.0,0.00030677,2]
[383957358,1757209843814,-400.0,0.00030677,2]
[383957359,1757209843824,-400.0,0.00030677,2]
[383957360,1757209843834,-400.0,0.00030677,2]
[383957361,1757209843844,-400.0,0.00030677,2]
[383957362,1757209843853,-400.0,0.00030677,2]
[383957363,1757209843863,-880.85,0.00030677,2]
[383957364,1757209843872,-400.0,0.00030677,2]
[383957365,1757209843883,-400.0,0.00030677,2]
[383957366,1757209843893,-435.77,0.00030677,2]
[383957367,1757209843903,-984.92,0.00030677,2]
[383957368,1757209843913,-948.03,0.00030677,2]
[383957369,1757209843927,-530.92,0.00030677,2]
[383957370,1757209843938,-400.0,0.00030677,2]
[383957371,1757209843948,-426.04,0.00030677,2]
[383957372,1757209843958,-942.88,0.00030677,2]
[383957373,1757209843967,-400.0,0.00030677,2]
[383957374,1757209843978,-400.0,0.00030677,2]
[383957375,1757209843988,-400.0,0.00030677,2]
[383957376,1757209843997,-400.0,0.00030677,2]
[383957377,1757209844007,-400.0,0.00030677,2]
[383957378,1757209844017,-403.52947309,0.00030677,2]
[383957379,1757209844027,-455.79,0.00030677,2]
[383957380,1757209844037,-400.0,0.00030677,2]
[383957381,1757209844046,-400.0,0.00030677,2]
[383957382,1757209844056,-457.59,0.00030677,2]
[383957383,1757209844066,-400.0,0.00030677,2]
[383957384,1757209844076,-1072.09,0.00030677,2]
[383957385,1757209844086,-1116.74,0.00030677,2]
[383957386,1757209844096,-151.96352564,0.0003072,2]
[383957387,1757209844106,-151.0,0.0003072,2]
[383957388,1757209844115,-151.0,0.0003072,2]
[383957389,1757209844125,-234.91,0.00030723,30]
[383957390,1757209844135,-232.48168397,0.00030749,2]
[383957391,1757209844145,-992.85834723,0.00030754,14]
[383957392,1757209844154,-200.0,0.000308,11]
[383957393,1757209844164,-886.66,0.00030849,2]
[383957394,1757209844175,-400.0,0.00030849,2]
[383957395,1757209844185,-1652.35,0.00030849,2]
[383957396,1757209844195,-898.88,0.00030849,2]
[383957397,1757209844205,-1223.73,0.00030849,2]
[383957398,1757209844214,-1818.27,0.00030849,2]
[383957399,1757209844225,-948.09,0.00030849,2]
[383957400,1757209844239,-2803.67,0.00030849,2]
[383957401,1757209844249,-1430.18,0.00030849,2]
[383957402,1757209844259,-902.67,0.00030849,2]
[383957403,1757209844269,-689.1,0.00030849,2]
[383957404,1757209844279,-400.0,0.00030849,2]
[383957405,1757209844288,-2369.06,0.00030849,2]
[383957406,1757209844298,-3010.93,0.00030849,2]
[383957407,1757209844310,-1369.97,0.00030849,2]
[383957408,1757209844319,-1200.51,0.00030849,2]
[383957409,1757209844329,-1444.69,0.00030849,2]
[383957410,1757209844339,-3962.08,0.00030849,2]
[383957411,1757209844348,-855.71,0.00030849,2]
[383957412,1757209844358,-917.81,0.00030849,2]
[383957413,1757209844367,-4422.33,0.00030849,2]
[383957414,1757209844376,-564.33,0.00030849,2]
[383957415,1757209844385,-154.95441274,0.00030849,2]
[383957416,1757209844395,-400.0,0.00030849,2]
[383957417,1757209844404,-546.01,0.00030849,2]
[383957418,1757209844414,-400.0,0.00030849,2]
[383957419,1757209844423,-539.37,0.00030849,2]
[383957420,1757209844433,-400.0,0.00030849,2]
[383957421,1757209844442,-942.59,0.00030849,2]
[383957422,1757209844453,-400.0,0.00030849,2]
[383957423,1757209844462,-400.0,0.00030849,2]
[383957424,1757209844472,-1147.27,0.00030849,2]
[383957425,1757209844482,-896.83,0.00030849,2]
[383957426,1757209844491,-400.0,0.00030849,2]
[383957427,1757209844734,-615.75,0.00030849,2]
[383957428,1757209844744,-633.27,0.0003085,2]
[383957429,1757209844754,-675.78,0.0003085,2]
[383957430,1757209844763,-400.0,0.0003085,2]
[383957431,1757209844773,-711.11,0.0003085,2]
[383957432,1757209844782,-400.0,0.0003085,2]
[383957433,1757209844792,-439.2,0.0003085,2]
[383957434,1757209844802,-152.0,0.00030864,4]
[383957435,1757209844813,-514.85095374,0.00030871,2]
[383957436,1757209844822,-212.67823062,0.00030876,2]
[383957437,1757209844832,-7005.0797667,0.00030899,2]
[383957438,1757209844842,-500.0,0.000309,11]
[383957439,1757209844852,-10000.0,0.00030926,2]
[383957440,1757209844862,-400.0,0.00030943,2]
[383957441,1757209844872,-402.5506344,0.00030943,2]
[383957442,1757209844882,-695.61,0.00030943,2]
[383957443,1757209844892,-629.85,0.00030943,2]
[383957444,1757209844903,-789.67,0.0003095,2]
[383957445,1757209844912,-1313.6,0.00030951,2]
[383957446,1757209844922,-400.0,0.00030951,2]
[383957447,1757209844931,-820.24,0.00030951,2]
[383957448,1757209844941,-400.0,0.00030951,2]
[383957449,1757209844951,-400.0,0.00030951,2]
[383957450,1757209844961,-400.0,0.00030951,2]
[383957451,1757209844972,-400.0,0.00030951,2]
[383957452,1757209844982,-400.0,0.00030951,2]
[383957453,1757209844992,-400.0,0.00030951,2]
[383957454,1757209845003,-400.0,0.00030951,2]
[383957455,1757209845014,-400.0,0.00030951,2]
[383957456,1757209845024,-400.0,0.00030951,2]
[383957457,1757209845033,-400.0,0.00030951,2]
[383957458,1757209845043,-400.0,0.00030951,2]
[383957459,1757209845053,-688.61,0.00030951,2]
[383957460,1757209845063,-1541.11,0.00030951,2]
[383957461,1757209845072,-400.0,0.00030951,2]
[383957462,1757209845082,-400.0,0.00030951,2]
[383957463,1757209845091,-497.45,0.00030951,2]
[383957464,1757209845101,-553.65,0.00030951,2]
[383957465,1757209845111,-400.0,0.00030951,2]
[383957466,1757209845120,-400.0,0.00030951,2]
[383957467,1757209845130,-400.0,0.00030951,2]
[383957468,1757209845140,-1087.81,0.00030951,2]
[383957469,1757209845150,-400.0,0.00030951,2]
[383957470,1757209845160,-474.71,0.00030951,2]
[383957471,1757209845170,-400.0,0.00030951,2]
[383957472,1757209845179,-1168.23,0.00030951,2]
[383957473,1757209845190,-739.05,0.00030951,2]
[383957474,1757209845199,-400.0,0.00030951,2]
[383957475,1757209845209,-417.56,0.00030951,2]
[383957476,1757209845222,-453.45,0.00030951,2]
[383957477,1757209845232,-1166.95,0.00030951,2]
[383957478,1757209845241,-400.0,0.00030951,2]
[383957479,1757209845251,-1219.37,0.00030951,2]
[383957480,1757209845260,-519.97,0.00030951,2]
[383957481,1757209845270,-400.0,0.00030951,2]
[383957482,1757209845280,-1175.07,0.00030951,2]
[383957483,1757209845289,-400.0,0.00030951,2]
[383957484,1757209845299,-400.0,0.00030951,2]
[383957485,1757209845308,-400.0,0.00030951,2]
[383957486,1757209845318,-400.0,0.00030951,2]
[383957487,1757209845327,-400.0,0.00030951,2]
[383957488,1757209845338,-400.0,0.00030951,2]
[383957489,1757209845348,-400.0,0.00030951,2]
[383957490,1757209845358,-501.60356032,0.00030951,2]
[383957491,1757209845368,-400.0,0.00030951,2]
[383957492,1757209845378,-401.97,0.00030951,2]
[383957493,1757209845387,-472.87,0.00030951,2]
[383957494,1757209845397,-1070.74,0.00030951,2]
[383957495,1757209845407,-400.0,0.00030951,2]
[383957496,1757209845417,-400.0,0.00030951,2]
[383957497,1757209845426,-400.0,0.00030951,2]
[383957498,1757209845436,-400.0,0.00030951,2]
[383957499,1757209845446,-400.0,0.00030951,2]
[383957500,1757209845455,-400.0,0.00030951,2]
[383957501,1757209845465,-880.85,0.00030951,2]
[383957502,1757209845475,-400.0,0.00030951,2]
[383957503,1757209845486,-400.0,0.00030951,2]
[383957504,1757209845496,-435.77,0.00030951,2]
[383957505,1757209845505,-984.92,0.00030951,2]
[383957506,1757209845515,-948.03,0.00030951,2]
[383957507,1757209845525,-530.92,0.00030951,2]
[383957508,1757209845535,-400.0,0.00030951,2]
[383957509,1757209845545,-426.04,0.00030951,2]
[383957510,1757209845555,-942.88,0.00030951,2]
[383957511,1757209845565,-400.0,0.00030951,2]
[383957512,1757209845575,-400.0,0.00030951,2]
[383957513,1757209845585,-400.0,0.00030951,2]
[383957514,1757209845594,-400.0,0.00030951,2]
[383957515,1757209845604,-400.0,0.00030951,2]
[383957516,1757209845614,-455.79,0.00030951,2]
[383957517,1757209845624,-400.0,0.00030951,2]
[383957518,1757209845633,-400.0,0.00030951,2]
[383957519,1757209845643,-457.59,0.00030951,2]
[383957520,1757209845652,-400.0,0.00030951,2]
[383957521,1757209845662,-1072.09,0.00030951,2]
[383957522,1757209845672,-1116.74,0.00030951,2]
[383957523,1757209845682,-500.0,0.00030957,2]
[383957524,1757209845693,-500.0,0.00030957,2]
[383957525,1757209845702,-150.0,0.00030957,120]
[383957526,1757209845712,-1077.33,0.00030957,2]
[383957527,1757209845722,-1077.33,0.00030957,2]
[383957528,1757209845732,-1425.0,0.00030983,2]
[383957529,1757209845742,-75374.6049888,0.00030989,2]
[383957530,1757209845752,-151.0,0.00030996,7]
[383957531,1757209845761,-400.0,0.00030998,2]
[383957532,1757209845771,-400.0,0.00030998,2]
[383957533,1757209845780,-400.0,0.00030998,2]
[383957534,1757209845790,-400.0,0.00030998,2]
[383957535,1757209845799,-400.0,0.00030998,2]
[383957536,1757209845809,-400.0,0.00030998,2]
[383957537,1757209845818,-400.0,0.00030998,2]
[383957538,1757209845829,-400.0,0.00030998,2]
[383957539,1757209845838,-410.07899679,0.00030998,2]
[383957540,1757209845847,-400.0,0.00030998,2]
[383957541,1757209845856,-400.0,0.00030998,2]
[383957542,1757209845865,-400.0,0.00030998,2]
[383957543,1757209845875,-400.0,0.00030998,2]
[383957544,1757209845885,-494.60091244,0.00030998,2]
[383957545,1757209845894,-400.0,0.00030998,2]
[383957546,1757209845903,-400.0,0.00030998,2]
[383957547,1757209845913,-400.0,0.00030998,2]
[383957548,1757209845922,-400.0,0.00030998,2]
[383957549,1757209845931,-400.0,0.00030998,2]
[383957550,1757209845941,-324.30356084,0.00030998,2]
[383957551,1757209845950,-400.0,0.00030998,2]
[383957552,1757209845959,-400.0,0.00030998,2]
[383957553,1757209845968,-400.0,0.00030999,2]
[383957554,1757209845978,-400.0,0.00030999,2]
[383957555,1757209845987,-711.41,0.00030999,2]
[383957556,1757209845996,-400.0,0.00030999,2]
[383957557,1757209846007,-1259.32,0.00030999,2]
[383957558,1757209846016,-400.0,0.00030999,2]
[383957559,1757209846025,-400.0,0.00030999,2]
[383957560,1757209846035,-490.27,0.00030999,2]
[383957561,1757209846044,-665.59,0.00030999,2]
[383957562,1757209846053,-822.97,0.00030999,2]
[383957563,1757209846063,-400.0,0.00030999,2]
[383957564,1757209846073,-400.0,0.00030999,2]
[383957565,1757209846082,-734.91,0.00030999,2]
[383957566,1757209846091,-400.0,0.00030999,2]
[383957567,1757209846100,-400.0,0.00030999,2]
[383957568,1757209846111,-871.39,0.00030999,2]
[383957569,1757209846121,-400.0,0.00030999,2]
[383957570,1757209846130,-478.76,0.00030999,2]
[383957571,1757209846139,-542.38,0.00030999,2]
[383957572,1757209846148,-712.84,0.00030999,2]
[383957573,1757209846157,-400.0,0.00030999,2]
[383957574,1757209846166,-400.0,0.00030999,2]
[383957575,1757209846175,-689.13,0.00030999,2]
[383957576,1757209846184,-677.97,0.00030999,2]
[383957577,1757209846193,-500.0,0.00030999,2]
[383957578,1757209846203,-1213.98,0.00030999,2]
[383957579,1757209846218,-640.4,0.00030999,2]
[383957580,1757209846230,-408.42,0.00030999,2]
[383957581,1757209846239,-1010.38,0.00030999,2]
[383957582,1757209846249,-400.0,0.00030999,2]
[383957583,1757209846258,-400.0,0.00030999,2]
[383957584,1757209846269,-679.84,0.00030999,2]
[383957585,1757209846278,-627.26,0.00030999,2]
[383957586,1757209846288,-400.0,0.00030999,2]
[383957587,1757209846297,-462.16,0.00030999,2]
[383957588,1757209846308,-400.0,0.00030999,2]
[383957589,1757209846318,-400.0,0.00030999,2]
[383957590,1757209846332,-536.32,0.00030999,2]
[383957591,1757209846342,-400.0,0.00030999,2]
[383957592,1757209846352,-635.08,0.00030999,2]
[383957593,1757209846363,-400.0,0.00030999,2]
[383957594,1757209846372,-759.39,0.00030999,2]
[383957595,1757209846382,-651.01,0.00030999,2]
[383957596,1757209846391,-400.0,0.00030999,2]
[383957597,1757209846401,-450.57,0.00030999,2]
[383957598,1757209846410,-732.15,0.00030999,2]
[383957599,1757209846420,-400.0,0.00030999,2]
[383957600,1757209846430,-400.0,0.00030999,2]
[383957601,1757209846439,-400.0,0.00030999,2]
[383957602,1757209846450,-686.0,0.00030999,2]
[383957603,1757209846459,-400.0,0.00030999,2]
[383957604,1757209846469,-634.79,0.00030999,2]
[383957605,1757209846480,-712.97,0.00030999,2]
[383957606,1757209846489,-400.0,0.00030999,2]
[383957607,1757209846498,-1000.82,0.00030999,2]
[383957608,1757209846508,-400.0,0.00030999,2]
[383957609,1757209846518,-400.0,0.00030999,2]
[383957610,1757209846528,-400.0,0.00030999,2]
[383957611,1757209846538,-450.85,0.00030999,2]
[383957612,1757209846547,-671.66,0.00030999,2]
[383957613,1757209846557,-400.0,0.00030999,2]
[383957614,1757209846566,-658.86,0.00030999,2]
[383957615,1757209846576,-500.0,0.00030999,2]
[383957616,1757209846586,-470.33,0.00030999,2]
[383957617,1757209846595,-1013.92,0.00030999,2]
[383957618,1757209846605,-400.0,0.00030999,2]
[383957619,1757209846615,-645.46,0.00030999,2]
[383957620,1757209846624,-552.58,0.00030999,2]
[383957621,1757209846634,-910.77,0.00030999,2]
[383957622,1757209846643,-422.09,0.00030999,2]
[383957623,1757209846652,-600.93,0.00030999,2]
[383957624,1757209846661,-400.0,0.00030999,2]
[383957625,1757209846671,-776.22,0.00030999,2]
[383957626,1757209846680,-419.86,0.00030999,2]
[383957627,1757209846689,-446.59,0.00030999,2]
[383957628,1757209846698,-400.0,0.00030999,2]
[383957629,1757209846710,-400.0,0.00030999,2]
[383957630,1757209846720,-212.14784169,0.00030999,2]
[383957631,1757209846730,-400.0,0.00030999,2]
[383957632,1757209846740,-731.2,0.00030999,2]
[383957633,1757209846749,-400.0,0.00030999,2]
[383957634,1757209846759,-520.34,0.00030999,2]
[383957635,1757209846768,-400.0,0.00030999,2]
[383957636,1757209846779,-400.0,0.00030999,2]
[383957637,1757209846789,-400.0,0.00030999,2]
[383957638,1757209846799,-666.29,0.00030999,2]
[383957639,1757209846809,-625.65,0.00030999,2]
[383957640,1757209846820,-400.0,0.00030999,2]